fUST/lending_fUST_20250422
["ID","MTS","AMOUNT","RATE_DAILY","PERIOD"]
[358631256,1745321442506,-500.0,0.00021917,2]
[358631257,1745321442516,-500.0,0.00021917,2]
[358631258,1745321442526,-500.0,0.00021917,2]
[358631259,1745321442540,-500.0,0.00021917,2]
[358631261,1745321442551,-500.0,0.00021917,2]
[358631263,1745321442560,-500.0,0.00021917,2]
[358631265,1745321442570,-500.0,0.00021917,2]
[358631268,1745321442580,-510.94224512,0.00021917,2]
[358631271,1745321442590,-500.0,0.00021917,2]
[358631273,1745321442600,-500.0,0.00021917,2]
[358631274,1745321442610,-500.0,0.00021917,2]
[358631275,1745321442620,-500.0,0.00021917,2]
[358631276,1745321442630,-500.0,0.00021917,2]
[358631277,1745321442640,-3153.41,0.00021917,2]
[358631279,1745321442650,-609.12,0.00021917,2]
[358631280,1745321442660,-500.0,0.00021917,2]
[358631281,1745321442669,-500.0,0.00021917,2]
[358631283,1745321442679,-500.54584082,0.00021917,2]
[358631285,1745321442689,-500.0,0.00021917,2]
[358631287,1745321442699,-5994.34,0.00021917,2]
[358631289,1745321442709,-500.0,0.00021917,2]
[358631291,1745321442720,-500.0,0.00021917,2]
[358631293,1745321442730,-513.93238625,0.00021917,2]
[358631294,1745321442740,-512.06,0.00021917,2]
[358631295,1745321442750,-501.69938003,0.00021917,2]
[358631296,1745321442761,-500.0,0.00021917,2]
[358631297,1745321442771,-277.99723843,0.00021917,2]
[358631298,1745321442782,-1744.07,0.00021917,2]
[358631299,1745321442792,-500.0,0.00021917,2]
[358631300,1745321442802,-520.10718635,0.00021917,2]
[358631301,1745321442813,-500.0,0.00021917,2]
[358631302,1745321442823,-820.42,0.00021917,2]
[358631303,1745321442833,-500.0,0.00021917,2]
[358631304,1745321442843,-500.0,0.00021917,2]
[358631305,1745321442852,-500.0,0.00021917,2]
[358631306,1745321442861,-500.0,0.00021917,2]
[358631307,1745321442871,-500.0,0.00021917,2]
[358631308,1745321442880,-500.0,0.00021917,2]
[358631309,1745321442890,-500.0,0.00021917,2]
[358631310,1745321442900,-500.0,0.00021917,2]
[358631311,1745321442910,-500.0,0.00021917,2]
[358631312,1745321442920,-500.0,0.00021917,2]
[358631313,1745321442932,-678.13,0.00021917,2]
[358631314,1745321442942,-500.0,0.00021917,2]
[358631315,1745321442952,-500.0,0.00021917,2]
[358631316,1745321442962,-897.82,0.00021917,2]
[358631317,1745321442971,-500.0,0.00021917,2]
[358631318,1745321442984,-500.0,0.00021917,2]
[358631319,1745321442994,-624.6,0.00021917,2]
[358631320,1745321443004,-500.85644021,0.00021917,2]
[358631321,1745321443014,-500.0,0.00021917,2]
[358631322,1745321443023,-500.0,0.00021917,2]
[358631323,1745321443033,-500.0,0.00021917,2]
[358631324,1745321443043,-1774.09,0.00021917,2]
[358631325,1745321443054,-500.0,0.00021917,2]
[358631326,1745321443064,-500.0,0.00021917,2]
[358631327,1745321443075,-500.0,0.00021917,2]
[358631328,1745321443086,-507.26804273,0.00021917,2]
[358631329,1745321443096,-500.0,0.00021917,2]
[358631330,1745321443106,-500.0,0.00021917,2]
[358631331,1745321443115,-500.0,0.00021917,2]
[358631332,1745321443125,-500.0,0.00021917,2]
[358631333,1745321443135,-500.0,0.00021917,2]
[358631334,1745321443145,-500.0,0.00021917,2]
[358631335,1745321443155,-500.0,0.00021917,2]
[358631336,1745321443164,-606.47,0.00021917,2]
[358631337,1745321443175,-500.0,0.00021917,2]
[358631338,1745321443185,-500.80780105,0.00021917,2]
[358631339,1745321443195,-1000.0,0.00021917,2]
[358631340,1745321443206,-500.0,0.00021917,2]
[358631341,1745321443215,-1851.66,0.00021917,2]
[358631342,1745321443226,-763.87,0.00021917,2]
[358631343,1745321443237,-500.0,0.00021917,2]
[358631344,1745321443248,-500.0,0.00021917,2]
[358631345,1745321443258,-500.0,0.00021917,2]
[358631346,1745321443268,-500.0,0.00021917,2]
[358631347,1745321443278,-500.0,0.00021917,2]
[358631348,1745321443289,-568.27800806,0.00021917,2]
[358631349,1745321443299,-500.0,0.00021917,2]
[358631350,1745321443309,-500.0,0.00021917,2]
[358631351,1745321443319,-502.36297939,0.00021917,2]
[358631352,1745321443328,-500.0,0.00021917,2]
[358631353,1745321443338,-500.0,0.00021917,2]
[358631354,1745321443347,-500.0,0.00021917,2]
[358631355,1745321443357,-500.0,0.00021917,2]
[358631356,1745321443367,-768.61,0.00021917,2]
[358631357,1745321443377,-500.0,0.00021917,2]
[358631358,1745321443388,-633.17,0.00021917,2]
[358631359,1745321443398,-500.0,0.00021917,2]
[358631360,1745321443407,-500.0,0.00021917,2]
[358631361,1745321443418,-722.43,0.00021917,2]
[358631362,1745321443429,-500.0,0.00021917,2]
[358631363,1745321443439,-500.0,0.00021917,2]
[358631365,1745321443449,-500.0,0.00021917,2]
[358631366,1745321443459,-500.0,0.00021917,2]
[358631367,1745321443469,-500.0,0.00021917,2]
[358631368,1745321443479,-500.0,0.00021917,2]
[358631369,1745321443490,-500.0,0.00021917,2]
[358631370,1745321443500,-515.51396382,0.00021917,2]
[358631371,1745321443510,-500.0,0.00021917,2]
[358631372,1745321443520,-500.0,0.00021917,2]
[358631373,1745321443530,-503.3984315,0.00021917,2]
[358631374,1745321443540,-567.23,0.00021917,2]
[358631375,1745321443550,-500.0,0.00021917,2]
[358631376,1745321443560,-500.0,0.00021917,2]
[358631377,1745321443571,-592.95871272,0.00021917,2]
[358631378,1745321443581,-506.66075598,0.00021917,2]
[358631379,1745321443591,-4106.67,0.00021917,2]
[358631380,1745321443600,-500.0,0.00021917,2]
[358631381,1745321443611,-500.0,0.00021917,2]
[358631382,1745321443621,-500.0,0.00021917,2]
[358631383,1745321443630,-500.0,0.00021917,2]
[358631384,1745321443640,-500.0,0.00021917,2]
[358631385,1745321443650,-500.0,0.00021917,2]
[358631386,1745321443661,-500.0,0.00021917,2]
[358631387,1745321443671,-500.0,0.00021917,2]
[358631388,1745321443684,-500.0,0.00021917,2]
[358631389,1745321443693,-500.0,0.00021917,2]
[358631390,1745321443703,-528.23856941,0.00021917,2]
[358631391,1745321443713,-500.0,0.00021917,2]
[358631392,1745321443723,-500.0,0.00021917,2]
[358631393,1745321443732,-508.76780697,0.00021917,2]
[358631394,1745321443742,-500.0,0.00021917,2]
[358631395,1745321443755,-500.0,0.00021917,2]
[358631396,1745321443773,-500.0,0.00021917,2]
[358631397,1745321443786,-500.0,0.00021918,2]
[358631398,1745321443795,-500.0,0.00021918,2]
[358631399,1745321443805,-151.0,0.00021918,2]
[358631400,1745321443815,-282.28074123,0.00021918,2]
[358631401,1745321443826,-224.51952508,0.00021918,2]
[358631402,1745321443836,-500.0,0.00021918,2]
[358631403,1745321443846,-151.0,0.00021918,2]
[358631404,1745321443856,-500.0,0.00021918,2]
[358631405,1745321443866,-260.12531393,0.00021918,2]
[358631406,1745321443876,-151.0,0.00021918,2]
[358631407,1745321443886,-500.0,0.00021973,2]
[358631408,1745321443896,-500.0,0.0002198,2]
[358631409,1745321443906,-9702.0,0.00022,2]
[358631410,1745321443916,-1168.14688451,0.00022091,2]
[358631411,1745321443929,-500.0,0.00022145,2]
[358631412,1745321443940,-161.47469625,0.00022145,2]
[358631413,1745321443950,-323.42725253,0.0002219,2]
[358631414,1745321443959,-169.87146534,0.0002219,2]
[358631415,1745321443971,-173.9981589,0.0002219,2]
[358631416,1745321443981,-500.0,0.00022191,2]
[358631417,1745321443990,-500.0,0.00022191,2]
[358631418,1745321444000,-500.0,0.00022191,2]
[358631419,1745321444012,-500.0,0.00022191,2]
[358631420,1745321444023,-496.08129879,0.00022191,2]
[358631421,1745321444033,-500.0,0.00022191,2]
[358631422,1745321444043,-500.0,0.00022191,2]
[358631423,1745321444053,-508.61607379,0.00022191,2]
[358631424,1745321444063,-779.08,0.00022191,2]
[358631425,1745321444074,-500.0,0.00022191,2]
[358631426,1745321444083,-466.83377839,0.00022191,2]
[358631427,1745321444093,-500.0,0.00022191,2]
[358631428,1745321444103,-500.0,0.00022191,2]
[358631429,1745321444113,-500.0,0.00022191,2]
[358631430,1745321444122,-500.0,0.00022191,2]
[358631431,1745321444132,-500.0,0.00022191,2]
[358631432,1745321444142,-500.0,0.00022191,2]
[358631433,1745321444152,-500.0,0.00022191,2]
[358631434,1745321444163,-514.27,0.00022191,2]
[358631435,1745321444174,-500.0,0.00022191,2]
[358631436,1745321444184,-500.0,0.00022191,2]
[358631437,1745321444195,-500.0,0.00022191,2]
[358631438,1745321444205,-500.0,0.00022191,2]
[358631439,1745321444215,-444.06608682,0.00022191,2]
[358631440,1745321444225,-500.0,0.00022191,2]
[358631441,1745321444235,-500.0,0.00022191,2]
[358631442,1745321444256,-500.0,0.00022191,2]
[358631443,1745321444268,-654.94,0.00022191,2]
[358631444,1745321444280,-500.0,0.00022191,2]
[358631445,1745321444291,-500.0,0.00022191,2]
[358631446,1745321444301,-500.0,0.00022191,2]
[358631447,1745321444311,-500.0,0.00022191,2]
[358631448,1745321444322,-500.0,0.00022191,2]
[358631449,1745321444333,-504.48898215,0.00022191,2]
[358631450,1745321444343,-500.0,0.00022191,2]
[358631451,1745321444354,-500.0,0.00022191,2]
[358631452,1745321444364,-500.0,0.00022191,2]
[358631453,1745321444377,-500.0,0.00022191,2]
[358631454,1745321444387,-500.0,0.00022191,2]
[358631455,1745321444398,-500.0,0.00022191,2]
[358631456,1745321444408,-500.0,0.00022191,2]
[358631457,1745321444418,-500.0,0.00022191,2]
[358631458,1745321444428,-500.0,0.00022191,2]
[358631459,1745321444439,-584.35,0.00022191,2]
[358631460,1745321444448,-342.18701394,0.00022191,2]
[358631461,1745321444459,-741.98,0.00022191,2]
[358631462,1745321444469,-500.0,0.00022191,2]
[358631463,1745321444480,-500.0,0.00022191,2]
[358631464,1745321444491,-500.0,0.00022191,2]
[358631465,1745321444502,-677.27,0.00022191,2]
[358631466,1745321444512,-500.0,0.00022191,2]
[358631467,1745321444523,-500.0,0.00022191,2]
[358631468,1745321444533,-500.0,0.00022191,2]
[358631469,1745321444543,-500.0,0.00022191,2]
[358631470,1745321444553,-1107.78,0.00022191,2]
[358631471,1745321444564,-500.0,0.00022191,2]
[358631472,1745321444574,-243.28,0.00022191,2]
[358631473,1745321444584,-500.0,0.00022191,2]
[358631474,1745321444594,-500.0,0.00022191,2]
[358631475,1745321444604,-500.0,0.00022191,2]
[358631476,1745321444614,-500.0,0.00022191,2]
[358631477,1745321444625,-500.0,0.00022191,2]
[358631478,1745321444635,-500.0,0.00022191,2]
[358631479,1745321444645,-500.0,0.00022191,2]
[358631480,1745321444656,-331.99819053,0.00022191,2]
[358631481,1745321444666,-500.0,0.00022191,2]
[358631482,1745321444676,-645.11,0.00022191,2]
[358631483,1745321444686,-500.0,0.00022191,2]
[358631484,1745321444696,-1576.74,0.00022191,2]
[358631485,1745321444706,-500.0,0.00022191,2]
[358631486,1745321444717,-500.0,0.00022191,2]
[358631487,1745321444727,-500.0,0.00022191,2]
[358631488,1745321444738,-279.98879875,0.00022191,2]
[358631489,1745321444748,-500.0,0.00022191,2]
[358631490,1745321444758,-387.68245617,0.00022191,2]
[358631491,1745321444768,-500.0,0.00022191,2]
[358631492,1745321444778,-500.0,0.00022191,2]
[358631493,1745321444788,-500.0,0.00022191,2]
[358631494,1745321444798,-500.0,0.00022191,2]
[358631495,1745321444808,-500.0,0.00022191,2]
[358631496,1745321444818,-595.57,0.00022191,2]
[358631497,1745321444828,-500.0,0.00022191,2]
[358631498,1745321444837,-500.0,0.00022191,2]
[358631499,1745321444847,-503.91690168,0.00022191,2]
[358631500,1745321444858,-221.05642372,0.00022191,2]
[358631501,1745321444873,-500.0,0.00022191,2]
[358631502,1745321444884,-3374.24,0.00022191,2]
[358631503,1745321444895,-500.0,0.00022191,2]
[358631504,1745321444907,-3232.48,0.00022191,2]
[358631505,1745321444919,-501.09037754,0.00022191,2]
[358631506,1745321444932,-500.0,0.00022191,2]
[358631507,1745321444943,-505.84,0.00022191,2]
[358631508,1745321444954,-500.0,0.00022191,2]
[358631509,1745321444964,-502.8591018,0.00022191,2]
[358631510,1745321444975,-500.0,0.00022191,2]
[358631511,1745321444986,-504.53398228,0.00022191,2]
[358631512,1745321444997,-614.31,0.00022191,2]
[358631513,1745321445010,-504.59063616,0.00022191,2]
[358631514,1745321445020,-500.0,0.00022191,2]
[358631515,1745321445030,-500.0,0.00022191,2]
[358631516,1745321445040,-500.0,0.00022191,2]
[358631517,1745321445051,-505.33011739,0.00022191,2]
[358631518,1745321445061,-500.0,0.00022191,2]
[358631519,1745321445071,-500.0,0.00022191,2]
[358631520,1745321445081,-500.0,0.00022191,2]
[358631521,1745321445092,-500.0,0.00022191,2]
[358631522,1745321445103,-500.0,0.00022191,2]
[358631523,1745321445113,-500.0,0.00022191,2]
[358631524,1745321445123,-517.25,0.00022191,2]
[358631525,1745321445135,-500.0,0.00022191,2]
[358631526,1745321445146,-10805.31,0.00022191,2]
[358631527,1745321445158,-531.60881479,0.00022191,2]
[358631528,1745321445169,-711.38,0.00022191,2]
[358631529,1745321445179,-500.0,0.00022191,2]
[358631530,1745321445189,-500.0,0.00022191,2]
[358631531,1745321445199,-500.0,0.00022191,2]
[358631532,1745321445209,-649.19,0.00022191,2]
[358631533,1745321445220,-500.0,0.00022191,2]
[358631534,1745321445231,-500.0,0.00022191,2]
[358631535,1745321445242,-727.87,0.00022191,2]
[358631536,1745321445253,-507.14471791,0.00022191,2]
[358631537,1745321445263,-500.0,0.00022191,2]
[358631538,1745321445273,-500.0,0.00022191,2]
[358631539,1745321445283,-500.0,0.00022191,2]
[358631540,1745321445293,-500.0,0.00022191,2]
[358631541,1745321445304,-500.0,0.00022191,2]
[358631542,1745321445315,-500.0,0.00022191,2]
[358631543,1745321445325,-500.0,0.00022191,2]
[358631544,1745321445336,-500.0,0.00022191,2]
[358631545,1745321445346,-500.0,0.00022191,2]
[358631546,1745321445358,-500.0,0.00022191,2]
[358631548,1745321445548,-500.0,0.00022191,2]
[358631549,1745321445559,-500.0,0.00022191,2]
[358631550,1745321445571,-500.0,0.00022191,2]
[358631551,1745321445581,-500.0,0.00022191,2]
[358631552,1745321445593,-500.0,0.00022191,2]
[358631553,1745321445603,-500.0,0.00022191,2]
[358631554,1745321445614,-500.0,0.00022191,2]
[358631555,1745321445624,-500.0,0.00022191,2]
[358631556,1745321445634,-500.0,0.00022191,2]
[358631557,1745321445645,-500.0,0.00022191,2]
[358631558,1745321445655,-508.22097457,0.00022191,2]
[358631559,1745321445665,-500.0,0.00022191,2]
[358631560,1745321445675,-500.0,0.00022191,2]
[358631561,1745321445684,-500.0,0.00022191,2]
[358631562,1745321445694,-500.0,0.00022191,2]
[358631563,1745321445705,-500.0,0.00022191,2]
[358631564,1745321445716,-3153.41,0.00022191,2]
[358631565,1745321445726,-609.12,0.00022191,2]
[358631566,1745321445736,-5994.34,0.00022191,2]
[358631567,1745321445747,-500.0,0.00022191,2]
[358631568,1745321445757,-512.06,0.00022191,2]
[358631569,1745321445768,-1744.07,0.00022191,2]
[358631570,1745321445779,-500.0,0.00022191,2]
[358631571,1745321445790,-820.42,0.00022191,2]
[358631572,1745321445803,-500.0,0.00022191,2]
[358631573,1745321445813,-500.0,0.00022191,2]
[358631574,1745321445824,-500.0,0.00022191,2]
[358631575,1745321445834,-500.0,0.00022191,2]
[358631576,1745321445846,-500.0,0.00022191,2]
[358631577,1745321445856,-500.0,0.00022191,2]
[358631578,1745321445866,-500.0,0.00022191,2]
[358631579,1745321445876,-501.31819858,0.00022191,2]
[358631580,1745321445888,-678.13,0.00022191,2]
[358631581,1745321445898,-500.0,0.00022191,2]
[358631582,1745321445908,-500.0,0.00022191,2]
[358631583,1745321445918,-897.82,0.00022191,2]
[358631584,1745321445931,-500.0,0.00022191,2]
[358631585,1745321445941,-500.0,0.00022191,2]
[358631586,1745321445951,-624.6,0.00022191,2]
[358631587,1745321445961,-505.82877217,0.00022191,2]
[358631588,1745321445972,-500.0,0.00022191,2]
[358631589,1745321445982,-1774.09,0.00022191,2]
[358631590,1745321445993,-515.49691352,0.00022191,2]
[358631591,1745321446003,-500.0,0.00022191,2]
[358631592,1745321446016,-500.0,0.00022191,2]
[358631593,1745321446027,-500.0,0.00022191,2]
[358631594,1745321446038,-500.0,0.00022191,2]
[358631595,1745321446049,-500.0,0.00022191,2]
[358631596,1745321446061,-500.0,0.00022191,2]
[358631597,1745321446070,-500.0,0.00022191,2]
[358631598,1745321446080,-606.47,0.00022191,2]
[358631599,1745321446089,-532.79272639,0.00022191,2]
[358631600,1745321446099,-500.0,0.00022191,2]
[358631601,1745321446109,-1851.66,0.00022191,2]
[358631602,1745321446119,-763.87,0.00022191,2]
[358631603,1745321446129,-500.0,0.00022191,2]
[358631604,1745321446140,-457.02890223,0.00022191,2]
[358631605,1745321446150,-500.0,0.00022191,2]
[358631606,1745321446160,-509.00604722,0.00022191,2]
[358631607,1745321446171,-500.0,0.00022191,2]
[358631608,1745321446182,-504.4368688,0.00022191,2]
[358631609,1745321446193,-504.3851446,0.00022191,2]
[358631610,1745321446203,-500.0,0.00022191,2]
[358631611,1745321446215,-768.61,0.00022191,2]
[358631612,1745321446225,-633.17,0.00022191,2]
[358631613,1745321446235,-514.96835971,0.00022191,2]
[358631614,1745321446245,-722.43,0.00022191,2]
[358631615,1745321446255,-506.67902245,0.00022191,2]
[358631616,1745321446267,-500.0,0.00022191,2]
[358631617,1745321446279,-510.87734503,0.00022191,2]
[358631618,1745321446291,-511.76396241,0.00022191,2]
[358631619,1745321446302,-502.87730235,0.00022191,2]
[358631620,1745321446312,-567.23,0.00022191,2]
[358631621,1745321446322,-500.0,0.00022191,2]
[358631622,1745321446346,-626.44,0.00022191,2]
[358631623,1745321446357,-4106.67,0.00022191,2]
[358631624,1745321446368,-500.0,0.00022191,2]
[358631625,1745321446379,-500.0,0.00022191,2]
[358631626,1745321446390,-505.82770341,0.00022191,2]
[358631627,1745321446401,-500.0,0.00022191,2]
[358631628,1745321446412,-502.78677908,0.00022191,2]
[358631629,1745321446422,-524.65146944,0.00022191,2]
[358631630,1745321446433,-500.0,0.00022191,2]
[358631631,1745321446444,-500.0,0.00022191,2]
[358631632,1745321446455,-500.0,0.00022191,2]
[358631633,1745321446466,-500.0,0.00022191,2]
[358631634,1745321446476,-500.0,0.00022191,2]
[358631635,1745321446488,-500.0,0.00022191,2]
[358631636,1745321446499,-500.0,0.00022191,2]
[358631637,1745321446510,-500.0,0.00022465,2]
[358631638,1745321446521,-500.0,0.00022465,2]
[358631639,1745321446531,-779.08,0.00022465,2]
[358631640,1745321446543,-500.0,0.00022465,2]
[358631641,1745321446553,-500.0,0.00022465,2]
[358631642,1745321446563,-500.0,0.00022465,2]
[358631643,1745321446573,-500.0,0.00022465,2]
[358631644,1745321446584,-503.04762056,0.00022465,2]
[358631646,1745321446594,-500.0,0.00022465,2]
[358631647,1745321446605,-500.0,0.00022465,2]
[358631648,1745321446615,-500.0,0.00022465,2]
[358631649,1745321446626,-514.27,0.00022465,2]
[358631650,1745321446638,-495.2907828,0.00022465,2]
[358631651,1745321446648,-500.0,0.00022465,2]
[358631652,1745321446658,-500.0,0.00022465,2]
[358631653,1745321446669,-500.0,0.00022465,2]
[358631654,1745321446679,-595.62,0.00022465,2]
[358631655,1745321446690,-500.0,0.00022465,2]
[358631656,1745321446700,-500.0,0.00022465,2]
[358631657,1745321446711,-654.94,0.00022465,2]
[358631658,1745321446722,-500.0,0.00022465,2]
[358631659,1745321446732,-500.0,0.00022465,2]
[358631660,1745321446742,-500.0,0.00022465,2]
[358631661,1745321446751,-500.0,0.00022465,2]
[358631662,1745321446762,-500.0,0.00022465,2]
[358631663,1745321446772,-500.0,0.00022465,2]
[358631664,1745321446782,-500.0,0.00022465,2]
[358631665,1745321446791,-500.0,0.00022465,2]
[358631666,1745321446802,-500.0,0.00022465,2]
[358631667,1745321446811,-500.0,0.00022465,2]
[358631668,1745321446821,-500.0,0.00022465,2]
[358631669,1745321446832,-584.35,0.00022465,2]
[358631670,1745321446842,-741.98,0.00022465,2]
[358631671,1745321446852,-500.0,0.00022465,2]
[358631672,1745321446862,-500.0,0.00022465,2]
[358631673,1745321446873,-500.0,0.00022465,2]
[358631674,1745321446884,-677.27,0.00022465,2]
[358631675,1745321446894,-500.0,0.00022465,2]
[358631676,1745321446904,-500.0,0.00022465,2]
[358631677,1745321446915,-500.0,0.00022465,2]
[358631678,1745321446926,-500.0,0.00022465,2]
[358631679,1745321446940,-1107.78,0.00022465,2]
[358631680,1745321446955,-500.0,0.00022465,2]
[358631681,1745321446967,-500.0,0.00022465,2]
[358631682,1745321446978,-632.66703073,0.00022465,2]
[358631683,1745321446989,-500.0,0.00022465,2]
[358631684,1745321446999,-500.0,0.00022465,2]
[358631685,1745321447010,-500.0,0.00022465,2]
[358631686,1745321447022,-500.0,0.00022465,2]
[358631687,1745321447033,-500.0,0.00022465,2]
[358631688,1745321447043,-645.11,0.00022465,2]
[358631689,1745321447054,-1576.74,0.00022465,2]
[358631690,1745321447064,-500.0,0.00022465,2]
[358631691,1745321447075,-500.0,0.00022465,2]
[358631692,1745321447085,-500.0,0.00022465,2]
[358631693,1745321447096,-500.0,0.00022465,2]
[358631694,1745321447108,-595.57,0.00022465,2]
[358631695,1745321447118,-500.0,0.00022465,2]
[358631696,1745321447128,-3374.24,0.00022465,2]
[358631697,1745321447139,-3232.48,0.00022465,2]
[358631698,1745321447149,-500.0,0.00022465,2]
[358631699,1745321447160,-500.0,0.00022465,2]
[358631700,1745321447171,-500.0,0.00022465,2]
[358631701,1745321447182,-614.31,0.00022465,2]
[358631702,1745321447192,-500.0,0.00022465,2]
[358631703,1745321447203,-500.0,0.00022465,2]
[358631704,1745321447214,-500.0,0.00022465,2]
[358631705,1745321447224,-500.0,0.00022465,2]
[358631706,1745321447235,-500.0,0.00022465,2]
[358631707,1745321447245,-500.0,0.00022465,2]
[358631708,1745321447255,-500.0,0.00022465,2]
[358631709,1745321447265,-500.0,0.00022465,2]
[358631710,1745321447275,-500.0,0.00022465,2]
[358631711,1745321447286,-517.25,0.00022465,2]
[358631712,1745321447296,-500.0,0.00022465,2]
[358631713,1745321447307,-10805.31,0.00022465,2]
[358631714,1745321447316,-711.38,0.00022465,2]
[358631715,1745321447327,-512.35601815,0.00022465,2]
[358631716,1745321447337,-307.47999198,0.00022465,2]
[358631717,1745321447347,-502.68089018,0.00022465,2]
[358631718,1745321447359,-649.19,0.00022465,2]
[358631719,1745321447370,-500.0,0.00022465,2]
[358631720,1745321447380,-503.65206564,0.00022465,2]
[358631721,1745321447391,-727.87,0.00022465,2]
[358631722,1745321447401,-500.0,0.00022465,2]
[358631723,1745321447412,-500.0,0.00022465,2]
[358631724,1745321447422,-500.0,0.00022465,2]
[358631725,1745321447433,-500.0,0.00022465,2]
[358631726,1745321447443,-500.0,0.00022465,2]
[358631727,1745321447453,-500.0,0.00022465,2]
[358631728,1745321447463,-500.0,0.00022465,2]
[358631729,1745321447473,-500.0,0.00022465,2]
[358631730,1745321447483,-500.0,0.00022465,2]
[358631731,1745321447493,-500.0,0.00022465,2]
[358631732,1745321447503,-500.0,0.00022465,2]
[358631733,1745321447514,-500.0,0.00022465,2]
[358631734,1745321447524,-500.0,0.00022465,2]
[358631735,1745321447534,-500.0,0.00022465,2]
[358631736,1745321447544,-500.0,0.00022465,2]
[358631737,1745321447554,-629.71255057,0.00022465,2]
[358631738,1745321447565,-500.0,0.00022465,2]
[358631739,1745321447575,-500.0,0.00022465,2]
[358631740,1745321447587,-500.0,0.00022465,2]
[358631741,1745321447597,-500.0,0.00022465,2]
[358631742,1745321447607,-500.0,0.00022465,2]
[358631743,1745321447617,-500.0,0.00022465,2]
[358631744,1745321447627,-500.0,0.00022465,2]
[358631745,1745321447638,-3153.41,0.00022465,2]
[358631746,1745321447648,-609.12,0.00022465,2]
[358631747,1745321447658,-5994.34,0.00022465,2]
[358631748,1745321447668,-512.06,0.00022465,2]
[358631749,1745321447678,-1744.07,0.00022465,2]
[358631750,1745321447688,-500.0,0.00022465,2]
[358631751,1745321447698,-820.42,0.00022465,2]
[358631752,1745321447711,-500.0,0.00022465,2]
[358631753,1745321447722,-500.0,0.00022465,2]
[358631754,1745321447734,-486.34626933,0.00022465,2]
[358631755,1745321447745,-509.38929486,0.00022465,2]
[358631756,1745321447755,-399.85441223,0.00022465,2]
[358631757,1745321447765,-678.13,0.00022465,2]
[358631758,1745321447776,-380.31634041,0.00022465,2]
[358631759,1745321447785,-897.82,0.00022465,2]
[358631760,1745321447796,-500.0,0.00022465,2]
[358631761,1745321447806,-500.0,0.00022465,2]
[358631762,1745321447817,-624.6,0.00022465,2]
[358631763,1745321447827,-1774.09,0.00022465,2]
[358631764,1745321447837,-500.0,0.00022465,2]
[358631765,1745321447847,-500.0,0.00022465,2]
[358631766,1745321447859,-500.0,0.00022465,2]
[358631767,1745321447868,-500.0,0.00022465,2]
[358631768,1745321447879,-500.0,0.00022465,2]
[358631769,1745321447889,-606.47,0.00022465,2]
[358631770,1745321447900,-1851.66,0.00022465,2]
[358631771,1745321447910,-763.87,0.00022465,2]
[358631772,1745321447920,-500.0,0.00022465,2]
[358631773,1745321447933,-500.0,0.00022465,2]